bitfinex/quotes_BTCUSD_20240927
["timestamp","ask_amount","ask_price","bid_price","bid_amount"]
[1727459550633,0.06279955,66017.0,66016.0,0.00030478]
[1727459550847,0.07279955,66017.0,66016.0,0.00030478]
[1727459551283,0.20808416,66017.0,66016.0,0.00030478]
[1727459552673,0.17279955,66017.0,66016.0,0.00030478]
[1727459552897,0.07279955,66017.0,66016.0,0.00030478]
[1727459553139,0.04979955,66017.0,66016.0,0.00030478]
[1727459554023,0.03779955,66017.0,66016.0,0.00030478]
[1727459554257,0.03679955,66017.0,66016.0,0.00030478]
[1727459554528,0.02779955,66017.0,66016.0,0.00030478]
[1727459554750,0.28627555,66017.0,66016.0,0.00030478]
[1727459554999,0.43129016,66017.0,66016.0,0.00030478]
[1727459555436,0.43129016,66017.0,66016.0,0.19380478]
[1727459555437,0.19427555,66017.0,66016.0,0.19380478]
[1727459555677,0.158476,66017.0,66016.0,0.19380478]
[1727459555892,0.157476,66017.0,66016.0,0.19380478]
[1727459556135,0.163476,66017.0,66016.0,0.19380478]
[1727459556354,0.012,66017.0,66016.0,0.19380478]
[1727459556594,0.157476,66017.0,66016.0,0.19380478]
[1727459556839,0.2192637,66017.0,66016.0,0.19380478]
[1727459557093,0.2242637,66017.0,66016.0,0.19380477]
[1727459557335,0.2182637,66017.0,66016.0,0.19380477]
[1727459557559,0.2132637,66017.0,66016.0,0.19380477]
[1727459558003,0.2132637,66017.0,66016.0,0.19480477]
[1727459558223,0.1982637,66017.0,66016.0,0.19480477]
[1727459558440,0.1982637,66017.0,66016.0,0.19380477]
[1727459558649,0.1992637,66017.0,66016.0,0.19380477]
[1727459558864,0.1982637,66017.0,66016.0,0.19380477]
[1727459559331,0.2002637,66017.0,66016.0,0.19380477]
[1727459559789,0.1992637,66017.0,66016.0,0.19380477]
[1727459560003,0.2002637,66017.0,66016.0,0.19380477]
[1727459560205,0.22401311,66017.0,66016.0,0.19380477]
[1727459560664,0.22484111,66017.0,66016.0,0.00030477]
[1727459560936,0.34784111,66017.0,66016.0,0.00030477]
[1727459562620,0.28605341,66017.0,66016.0,0.00030477]
[1727459569242,0.46302119,66017.0,66016.0,0.00030477]
[1727459570145,0.46802119,66017.0,66016.0,0.00030477]
[1727459571055,0.46702119,66017.0,66016.0,0.00030477]
[1727459571313,0.46602119,66017.0,66016.0,0.00030477]
[1727459571779,0.47502119,66017.0,66016.0,0.00030477]
[1727459572207,0.48202119,66017.0,66016.0,0.00030477]
[1727459572484,0.62047773,66017.0,66016.0,0.00030477]
[1727459572705,0.61539901,66017.0,66016.0,0.00030477]
[1727459572933,0.62939901,66017.0,66016.0,0.00030477]
[1727459573172,0.62039901,66017.0,66016.0,0.00030477]
[1727459573392,0.63439901,66017.0,66016.0,0.00030477]
[1727459573851,0.62039901,66017.0,66016.0,0.00030477]
[1727459574078,0.63439901,66017.0,66016.0,0.00030477]
[1727459574538,0.62039901,66017.0,66016.0,0.00030477]
[1727459575254,0.63439901,66017.0,66016.0,0.00030477]
[1727459575951,0.62039901,66017.0,66016.0,0.00030477]
[1727459576194,0.63439901,66017.0,66016.0,0.00030477]
[1727459576457,0.62039901,66017.0,66016.0,0.00030477]
[1727459576695,0.72359901,66017.0,66016.0,7.7e-07]
[1727459576936,0.6858496,66017.0,66016.0,7.7e-07]
[1727459577169,0.6998496,66017.0,66016.0,7.7e-07]
[1727459577415,0.25342028,66007.0,66005.0,0.001654]
[1727459577641,0.51726671,66007.0,66005.0,0.001654]
[1727459579285,0.52926671,66007.0,66005.0,0.001654]
[1727459579743,0.52734543,66007.0,66005.0,0.001654]
[1727459579982,0.54134543,66007.0,66005.0,0.001654]
[1727459580214,0.55110002,66007.0,66005.0,0.001654]
[1727459580451,0.52734543,66007.0,66005.0,0.001654]
[1727459580681,0.54134543,66007.0,66005.0,0.001654]
[1727459580914,0.54326671,66007.0,66005.0,0.001654]
[1727459581130,0.53126671,66007.0,66005.0,0.001654]
[1727459581354,0.53526671,66007.0,66005.0,0.001654]
[1727459581578,0.53508437,66007.0,66005.0,0.001654]
[1727459581800,0.52016309,66007.0,66005.0,0.001654]
[1727459582238,0.16742228,66006.0,66005.0,1e-06]
[1727459582466,0.16742228,66006.0,65996.0,0.001656]
[1727459582467,0.00192128,65997.0,65996.0,0.001656]
[1727459582711,0.47110048,65997.0,65996.0,0.001656]
[1727459583872,0.48010048,65997.0,65996.0,0.001656]
[1727459584585,0.50810048,65997.0,65996.0,0.001656]
[1727459584798,0.57390041,65997.0,65996.0,0.001656]
[1727459585020,0.55990041,65997.0,65996.0,0.001656]
[1727459585250,0.57211006,65997.0,65996.0,0.001656]
[1727459585683,0.55811006,65997.0,65996.0,0.001656]
[1727459586149,0.57311006,65997.0,65996.0,0.001656]
[1727459586390,0.55990041,65997.0,65996.0,0.001656]
[1727459586607,0.57390041,65997.0,65996.0,0.001656]
[1727459586852,0.55990041,65997.0,65996.0,0.001656]
[1727459587562,0.57390041,65997.0,65996.0,0.001656]
[1727459587774,0.59766033,65997.0,65996.0,0.001656]
[1727459589093,0.58366033,65997.0,65996.0,0.001656]
[1727459589372,0.58772299,65997.0,65996.0,0.001656]
[1727459589603,0.59993264,65997.0,65996.0,0.001656]
[1727459589833,0.60093264,65997.0,65996.0,0.001656]
[1727459590046,0.58693264,65997.0,65996.0,0.001656]
[1727459590277,0.60093264,65997.0,65996.0,0.001656]
[1727459590509,0.57717272,65997.0,65996.0,0.001656]
[1727459590738,0.57796307,65997.0,65996.0,0.001656]
[1727459590957,0.56396307,65997.0,65996.0,0.001656]
[1727459591652,0.57796307,65997.0,65996.0,0.001656]
[1727459593781,0.60172271,65997.0,65996.0,0.001656]
[1727459594896,0.57796307,65997.0,65996.0,0.001656]
[1727459597312,0.57796307,65997.0,65996.0,1e-06]
[1727459597726,0.58772362,65997.0,65996.0,1e-06]
[1727459597954,0.60172362,65997.0,65996.0,1e-06]
[1727459598153,0.01579035,65994.0,65993.0,0.001656]
[1727459598418,0.38072804,65994.0,65993.0,0.001656]
[1727459598883,0.38072804,65994.0,65993.0,1e-06]
[1727459599094,0.28134135,65984.0,65979.0,0.22645098]
[1727459599323,0.47204796,65984.0,65979.0,0.22645098]
[1727459599550,0.27635135,65980.0,65979.0,0.22645098]
[1727459599777,0.46809152,65980.0,65979.0,0.22645098]
[1727459600008,0.46809152,65980.0,65975.0,0.1932]
[1727459600009,0.25157,65976.0,65975.0,0.1932]
[1727459600210,0.46676962,65976.0,65975.0,0.1932]
[1727459601064,0.274579,65972.0,65970.0,1.62867095]
[1727459601287,0.274579,65972.0,65970.0,1.55217095]
[1727459601288,0.46700837,65972.0,65970.0,1.55217095]
[1727459601499,0.46700837,65972.0,65971.0,0.22810698]
[1727459601724,0.46700837,65972.0,65971.0,0.001656]
[1727459602245,0.49077462,65972.0,65971.0,0.001656]
[1727459602473,0.58009828,65972.0,65971.0,0.001656]
[1727459602701,0.32972812,65972.0,65971.0,0.081956]
[1727459603179,0.34172812,65972.0,65971.0,0.081956]
[1727459603426,0.31796187,65972.0,65971.0,0.081956]
[1727459603639,0.30396187,65972.0,65971.0,0.081956]
[1727459603872,0.44188215,65972.0,65971.0,0.081956]
[1727459604569,0.44587707,65972.0,65971.0,0.081956]
[1727459605015,0.29495679,65972.0,65971.0,0.081956]
[1727459605232,0.29495679,65972.0,65971.0,0.269056]
[1727459605893,0.28295679,65972.0,65971.0,0.269056]
[1727459606101,0.29195679,65972.0,65971.0,0.269056]
[1727459606544,0.19195679,65972.0,65971.0,0.49550698]
[1727459606785,0.454704,65977.0,65976.0,0.001]
[1727459607014,0.454704,65977.0,65976.0,0.19430965]
[1727459607255,0.454704,65977.0,65976.0,0.27080965]
[1727459607476,0.47846554,65977.0,65976.0,0.27080965]
[1727459608166,0.48046554,65977.0,65976.0,0.27080965]
[1727459608652,0.47846554,65977.0,65976.0,0.27080965]
[1727459608892,0.56262429,65977.0,65976.0,0.2706]
[1727459609124,0.55762429,65977.0,65976.0,0.2716]
[1727459609352,0.55762429,65977.0,65976.0,0.2776]
[1727459609587,0.55762429,65977.0,65976.0,0.2726]
[1727459610049,0.55862429,65977.0,65976.0,0.2786]
[1727459610272,0.55762429,65977.0,65976.0,0.2726]
[1727459610500,0.53286275,65977.0,65976.0,0.27080965]
[1727459610735,0.53286275,65977.0,65976.0,0.2706]
[1727459610965,0.53386275,65977.0,65976.0,0.2766]
[1727459611440,0.454704,65977.0,65976.0,0.2706]
[1727459611670,0.454704,65977.0,65976.0,0.2796]
[1727459613532,0.454704,65977.0,65976.0,0.2786]
[1727459613801,0.454704,65977.0,65976.0,0.2746]
[1727459614052,0.454704,65977.0,65976.0,0.2766]
[1727459614708,0.47846509,65977.0,65976.0,0.2726]
[1727459614931,0.47846509,65977.0,65976.0,0.2746]
[1727459615172,0.55701988,65977.0,65976.0,0.2726]
[1727459615392,0.55701988,65977.0,65976.0,0.2706]
[1727459615614,0.55901988,65977.0,65976.0,0.2706]
[1727459615831,0.56101988,65977.0,65976.0,0.2706]
[1727459616049,0.55901988,65977.0,65976.0,0.27080965]
[1727459616267,0.56101988,65977.0,65976.0,0.27080965]
[1727459616486,0.55901988,65977.0,65976.0,0.2706]
[1727459617362,0.55701988,65977.0,65976.0,0.2706]
[1727459617611,0.55901988,65977.0,65976.0,0.2706]
[1727459617864,0.48046509,65977.0,65976.0,0.27280965]
[1727459618093,0.47846509,65977.0,65976.0,0.27280965]
[1727459618638,0.47846509,65977.0,65976.0,0.27480965]
[1727459619289,0.47846509,65977.0,65976.0,0.2746]
[1727459620473,0.47846509,65977.0,65976.0,0.2726]
[1727459620680,0.48046509,65977.0,65976.0,0.2726]
[1727459620880,0.48046509,65977.0,65976.0,0.2706]
[1727459621095,0.48346509,65977.0,65976.0,0.2706]
[1727459621305,0.48346509,65977.0,65976.0,0.1931]
[1727459621306,0.56051988,65977.0,65976.0,0.1931]
[1727459621580,0.56051988,65977.0,65971.0,0.42800698]
[1727459621581,0.151579,65972.0,65971.0,0.42800698]
[1727459622016,0.151579,65972.0,65971.0,0.201556]
[1727459622446,0.27788708,65972.0,65971.0,0.201556]
[1727459623518,0.151579,65972.0,65971.0,0.201556]
[1727459623973,0.151579,65972.0,65971.0,0.203556]
[1727459625080,0.151579,65972.0,65971.0,0.202556]
[1727459625960,0.17534303,65972.0,65971.0,0.202556]
[1727459627277,0.17534303,65972.0,65971.0,0.20275908]
[1727459627499,0.17534303,65972.0,65971.0,0.20375908]
[1727459627713,0.29612203,65972.0,65971.0,0.20375908]
[1727459628212,0.30014821,65972.0,65971.0,0.20375908]
[1727459628623,0.30014821,65972.0,65971.0,0.20275908]
[1727459628831,0.30014821,65972.0,65971.0,0.20175908]
[1727459629101,0.30114821,65972.0,65971.0,0.20175908]
[1727459630560,0.27738418,65972.0,65971.0,0.20175908]
[1727459631175,0.27638418,65972.0,65971.0,0.20175908]
[1727459631318,0.27738418,65972.0,65971.0,0.20175908]
[1727459631994,0.57643068,65972.0,65971.0,0.00185908]
[1727459632209,0.57543068,65972.0,65971.0,0.00185908]
[1727459632522,0.57443068,65972.0,65971.0,0.00185908]
[1727459632957,0.58843068,65972.0,65971.0,0.00285908]
[1727459633705,0.014,65972.0,65971.0,0.49611006]
[1727459633907,0.026,65972.0,65971.0,0.27065908]
[1727459634130,0.012,65972.0,65971.0,0.26965908]
[1727459634383,0.303095,65986.0,65972.0,0.1874]
[1727459634579,0.303095,65986.0,65971.0,0.08830523]
[1727459634580,0.151566,65978.0,65975.0,0.001]
[1727459634781,0.151566,65978.0,65976.0,0.18760965]
[1727459634942,0.151567,65977.0,65976.0,0.1946904]
[1727459635347,0.151567,65977.0,65976.0,0.19490005]
[1727459636718,0.2273482,65977.0,65976.0,0.1976904]
[1727459637135,0.25111008,65977.0,65976.0,0.1976904]
[1727459637810,0.25111008,65977.0,65976.0,0.2006904]
[1727459640485,0.25111008,65977.0,65976.0,0.1976904]
[1727459640718,0.2273482,65977.0,65976.0,0.1976904]
[1727459640945,0.2273482,65977.0,65976.0,0.1996904]
[1727459641187,0.2503482,65977.0,65976.0,0.1966904]
[1727459641649,0.3503482,65977.0,65976.0,0.1946904]
[1727459641903,0.3503482,65977.0,65976.0,0.1966904]
[1727459642121,0.35441752,65977.0,65976.0,0.1956904]
[1727459642344,0.35441752,65977.0,65976.0,0.19589348]
[1727459642575,0.35541752,65977.0,65976.0,0.19589348]
[1727459643549,0.35541752,65977.0,65976.0,0.19489348]
[1727459644004,0.35441752,65977.0,65976.0,0.19489348]
[1727459644434,0.35441752,65977.0,65976.0,0.19589348]
[1727459644649,0.35441752,65977.0,65976.0,0.19489348]
[1727459644867,0.35541752,65977.0,65976.0,0.19489348]
[1727459648055,0.37918084,65977.0,65976.0,0.19689348]
[1727459648288,0.37818084,65977.0,65976.0,0.19689348]
[1727459648505,0.37818084,65977.0,65976.0,0.19889348]
[1727459648941,0.37818084,65977.0,65976.0,0.00949348]
[1727459649201,0.46217119,65977.0,65976.0,0.00949348]
[1727459649416,0.46217119,65977.0,65976.0,0.00220308]
[1727459649892,0.46138084,65977.0,65976.0,0.00220308]
[1727459650113,0.46038084,65977.0,65976.0,0.00220308]
[1727459650366,0.46038084,65977.0,65976.0,0.00020308]
[1727459650584,0.43861752,65977.0,65976.0,0.00020308]
[1727459650816,0.43661752,65977.0,65976.0,0.00020308]
[1727459651017,0.43661752,65977.0,65976.0,0.00220308]
[1727459651285,0.45061752,65977.0,65976.0,0.00320308]
[1727459651969,0.45061752,65977.0,65976.0,0.00120308]
[1727459652672,0.46261752,65977.0,65976.0,0.00220308]
[1727459653828,0.38041752,65977.0,65976.0,0.00220308]
[1727459656990,0.30463632,65977.0,65976.0,0.00220308]
[1727459657224,0.026,65977.0,65976.0,0.42968273]
[1727459657441,0.026,65977.0,65976.0,0.43068273]
[1727459657901,0.30309,65987.0,65978.0,0.001]
[1727459658123,0.151549,65986.0,65985.0,0.19450965]
[1727459658357,0.151549,65986.0,65985.0,0.27611273]
[1727459658633,0.22772264,65986.0,65985.0,0.27590308]
[1727459659309,0.25148135,65986.0,65985.0,0.27590308]
[1727459660688,0.22772264,65986.0,65985.0,0.27590308]
[1727459660918,0.23072264,65986.0,65985.0,0.27590308]
[1727459661358,0.23472264,65986.0,65985.0,0.27590308]
[1727459663119,0.23072264,65986.0,65985.0,0.27590308]
[1727459663330,0.22772264,65986.0,65985.0,0.27590308]
[1727459663558,0.23172264,65986.0,65985.0,0.27590308]
[1727459664210,0.23472264,65986.0,65985.0,0.27590308]
[1727459664414,0.158549,65986.0,65985.0,0.27590308]
[1727459664905,0.18230833,65986.0,65985.0,0.27590308]
[1727459666700,0.18230833,65986.0,65985.0,0.19450308]
[1727459666907,0.28230833,65986.0,65985.0,0.00020308]
[1727459667135,0.30530833,65986.0,65985.0,0.00020308]
[1727459667354,0.43767005,65986.0,65985.0,0.00020308]
[1727459667592,0.44167005,65986.0,65985.0,0.00020308]
[1727459667825,0.44067005,65986.0,65985.0,0.00020308]
[1727459668285,0.44467005,65986.0,65985.0,0.00020308]
[1727459669218,0.44167005,65986.0,65985.0,0.00020308]
[1727459669429,0.44467005,65986.0,65985.0,0.00020308]
[1727459671005,0.18230833,65986.0,65985.0,0.19690308]
[1727459671223,0.18230633,65986.0,65985.0,0.19690308]
[1727459671434,0.03075933,65986.0,65985.0,0.19711273]
[1727459671638,0.03075933,65986.0,65985.0,0.60470823]
[1727459671870,0.22645098,66004.0,65985.0,0.60470823]
[1727459671871,0.15235,65997.0,65996.0,0.001]
[1727459672069,0.15235,65997.0,65996.0,0.27630308]
[1727459672294,0.000828,65997.0,65996.0,0.27630308]
[1727459672975,0.000828,65997.0,65996.0,0.3820715]
[1727459673184,0.000828,65997.0,65996.0,0.53359549]
[1727459673388,0.000828,65997.0,65996.0,0.53659549]
[1727459674077,0.000828,65997.0,65996.0,0.27651272]
[1727459674350,0.001828,65997.0,65996.0,0.28451272]
[1727459674557,0.001828,65997.0,65996.0,0.29251272]
[1727459674558,0.002828,65997.0,65996.0,0.29251272]
[1727459676887,0.15435,65997.0,65996.0,0.29251272]
[1727459678421,0.002828,65997.0,65996.0,0.29251272]
[1727459678864,0.15435,65997.0,65996.0,0.29251272]
[1727459679305,0.002828,65997.0,65996.0,0.29251272]
[1727459679529,0.002828,65997.0,65996.0,0.29251271]
[1727459680462,0.15435,65997.0,65996.0,0.29251271]
[1727459680640,0.002828,65997.0,65996.0,0.29251271]
[1727459681288,0.15435,65997.0,65996.0,0.29251271]
[1727459683219,0.2303915,65997.0,65996.0,0.29230306]
[1727459683453,0.15435,65997.0,65996.0,0.29230306]
[1727459685244,0.1781039,65997.0,65996.0,0.29230306]
[1727459685733,0.15435,65997.0,65996.0,0.01620306]
[1727459685934,0.2606941,65997.0,65996.0,0.01720306]
[1727459687409,0.15435,65997.0,65996.0,0.01720306]
[1727459688803,0.15435,65997.0,65996.0,0.01741271]
[1727459689043,0.17810474,65997.0,65996.0,0.21021271]
[1727459689281,0.17810474,65997.0,65996.0,0.20921271]
[1727459689516,0.17810474,65997.0,65996.0,0.21021271]
[1727459691914,0.17810474,65997.0,65996.0,0.66478271]
[1727459695826,0.17810474,65997.0,65996.0,0.6647827]
[1727459696919,0.02658274,65997.0,65996.0,0.6647827]
[1727459697184,0.303012,66004.0,65996.0,0.6647827]
[1727459697185,0.22645098,66011.0,65996.0,0.9222292]
[1727459697423,0.00049742,66007.0,66006.0,0.423101]
[1727459697661,0.00049742,66007.0,66006.0,0.87780405]
[1727459697901,0.00049742,66007.0,66006.0,0.72630305]
[1727459698127,0.00049742,66007.0,66006.0,0.87780405]
[1727459699048,0.00049742,66007.0,66006.0,0.8870137]
[1727459699049,0.00249742,66007.0,66006.0,0.8870137]
[1727459699292,0.00249742,66007.0,66006.0,1.03631776]
[1727459699525,0.00249742,66007.0,66006.0,1.02731776]
[1727459699526,0.00049742,66007.0,66006.0,1.02731776]
[1727459699767,0.00049742,66007.0,66006.0,1.21336426]
[1727459699995,0.00049742,66007.0,66006.0,1.22436426]
[1727459700439,0.00049742,66007.0,66006.0,1.05306019]
[1727459700667,0.00049742,66007.0,66006.0,1.06706018]
[1727459700868,0.00049742,66007.0,66006.0,1.08106018]
[1727459701342,0.000828,66017.0,66016.0,0.15268765]
[1727459701563,0.000828,66017.0,66016.0,0.87793068]
[1727459701783,0.000828,66017.0,66016.0,0.72645268]
[1727459702451,0.152304,66017.0,66016.0,0.72645268]
[1727459702916,0.152304,66017.0,66016.0,0.72645267]
[1727459703150,0.152304,66017.0,66016.0,0.73445267]
[1727459703633,0.000828,66017.0,66016.0,0.82183719]
[1727459703855,0.000828,66017.0,66016.0,0.72624302]
[1727459704070,0.000828,66017.0,66016.0,0.72924302]
[1727459704281,0.000828,66017.0,66016.0,0.72945267]
[1727459704517,0.000828,66017.0,66016.0,0.72645267]
[1727459704739,0.000828,66017.0,66016.0,0.87793067]
[1727459704970,0.000828,66017.0,66016.0,1.03431873]
[1727459705446,0.000827,66024.0,66023.0,0.420062]
[1727459705668,0.000827,66024.0,66023.0,1.04970151]
[1727459706135,0.000827,66024.0,66023.0,1.04991116]
[1727459706592,0.000827,66024.0,66023.0,1.14837361]
[1727459706825,0.0006446,66024.0,66023.0,1.21429922]
[1727459707076,0.0006446,66024.0,66023.0,1.21329922]
[1727459707313,0.0006446,66024.0,66023.0,1.28810617]
[1727459707541,0.0006446,66024.0,66023.0,1.30210616]
[1727459707780,0.0006446,66024.0,66023.0,1.12309731]
[1727459708017,0.0006446,66024.0,66023.0,1.07791115]
[1727459708266,0.0006446,66024.0,66023.0,0.90286465]
[1727459708519,0.0006446,66024.0,66023.0,0.669593]
[1727459708520,0.1521046,66024.0,66023.0,0.669593]
[1727459708754,0.1521046,66024.0,66023.0,0.469593]
[1727459708987,0.0006446,66024.0,66023.0,0.469593]
[1727459709220,0.0006446,66024.0,66023.0,0.483593]
[1727459709430,0.0006446,66024.0,66023.0,0.455593]
[1727459709866,0.0006446,66024.0,66023.0,0.464593]
[1727459710072,0.1521046,66024.0,66023.0,0.464593]
[1727459710286,0.1521046,66024.0,66023.0,0.460593]
[1727459710287,0.22806186,66024.0,66023.0,0.460593]
[1727459710505,0.1521046,66024.0,66023.0,0.459593]
[1727459710739,0.1521046,66024.0,66023.0,0.465593]
[1727459711441,0.2521046,66024.0,66023.0,0.46559299]
[1727459711668,0.39410641,66024.0,66023.0,0.46559299]
[1727459711892,0.41710641,66024.0,66023.0,0.45959299]
[1727459712114,0.41710641,66024.0,66023.0,0.45459299]
[1727459712334,0.41810641,66024.0,66023.0,0.47159299]
[1727459712577,0.41989676,66024.0,66023.0,0.46359299]
[1727459712794,0.41889676,66024.0,66023.0,0.45459299]
[1727459713007,0.42989676,66024.0,66023.0,0.45659299]
[1727459713253,0.42989676,66024.0,66023.0,0.45559299]
[1727459713254,0.42689676,66024.0,66023.0,0.45559299]
[1727459713486,0.42189676,66024.0,66023.0,0.45559299]
[1727459714361,0.43389676,66024.0,66023.0,0.45659299]
[1727459714577,0.60894326,66024.0,66023.0,0.45659299]
[1727459715946,0.4651511,66024.0,66023.0,0.45659299]
[1727459716162,0.4701511,66024.0,66023.0,0.45659299]
[1727459716422,0.47694145,66024.0,66023.0,0.45659299]
[1727459717305,0.4751511,66024.0,66023.0,0.45659299]
[1727459717524,0.4651511,66024.0,66023.0,0.45659299]
[1727459717996,0.4661511,66024.0,66023.0,0.45659299]
[1727459719521,0.46694145,66024.0,66023.0,0.45659299]
[1727459719958,0.63729108,66024.0,66023.0,0.45659299]
[1727459720202,0.31485446,66024.0,66023.0,0.45659299]
[1727459720432,0.48990096,66024.0,66023.0,0.45659299]
[1727459721131,0.000827,66028.0,66023.0,0.45659299]
[1727459721132,0.000828,66037.0,66023.0,0.81869299]
[1727459721368,0.000828,66037.0,66029.0,0.166448]
[1727459721633,0.000828,66037.0,66029.0,0.7990759]
[1727459721855,0.000828,66037.0,66029.0,0.79604748]
[1727459722369,0.000828,66037.0,66029.0,0.46955298]
[1727459722606,0.0202221,66030.0,66029.0,0.46955298]
[1727459722825,0.0132221,66030.0,66029.0,0.47455298]
[1727459723044,0.0132221,66030.0,66029.0,0.46955298]
[1727459723267,0.0142221,66030.0,66029.0,0.49755298]
[1727459723738,0.0132221,66030.0,66029.0,0.46955298]
[1727459724246,0.0132221,66030.0,66029.0,0.47155298]
[1727459724467,0.0132221,66030.0,66029.0,0.46955298]
[1727459724711,0.0132221,66030.0,66029.0,0.45455298]
[1727459724929,0.0132221,66030.0,66029.0,0.45855298]
[1727459725633,0.0132221,66030.0,66029.0,0.63759948]
[1727459725634,0.0140501,66030.0,66029.0,0.63759948]
[1727459725885,0.0140501,66030.0,66029.0,0.45855298]
[1727459726662,0.0140501,66030.0,66029.0,0.45455298]
[1727459726878,0.0140501,66030.0,66029.0,0.45855298]
[1727459729393,0.0140501,66030.0,66029.0,0.45855297]
[1727459729635,0.0140501,66030.0,66029.0,0.61000097]
[1727459729879,0.0140501,66030.0,66029.0,1.02649845]
[1727459730116,0.0140501,66030.0,66029.0,0.80004747]
[1727459730392,0.0140501,66030.0,66029.0,0.80204747]
[1727459730634,0.0140501,66030.0,66029.0,0.88174747]
[1727459731103,0.0140501,66030.0,66029.0,0.89174747]
[1727459731349,0.0140501,66030.0,66029.0,0.90474747]
[1727459731822,0.0140501,66030.0,66029.0,0.89174747]
[1727459732068,0.0140501,66030.0,66029.0,0.71670097]
[1727459732290,0.0140501,66030.0,66029.0,0.89274747]
[1727459732510,0.0140501,66030.0,66029.0,0.90674747]
[1727459732771,0.0140501,66030.0,66029.0,0.87874747]
[1727459732996,0.0140501,66030.0,66029.0,0.89274747]
[1727459733213,0.0140501,66030.0,66029.0,0.90674747]
[1727459733428,0.0140501,66030.0,66029.0,0.89274747]
[1727459733652,0.0140501,66030.0,66029.0,0.72970097]
[1727459733873,0.0140501,66030.0,66029.0,0.63500097]
[1727459734107,0.00557165,66030.0,66029.0,0.63500097]
[1727459734542,0.00557165,66030.0,66029.0,0.64900097]
[1727459734974,0.00557165,66030.0,66029.0,0.63500097]
[1727459735190,0.00557165,66030.0,66029.0,0.48355297]
[1727459735439,0.00557165,66030.0,66029.0,0.49655296]
[1727459735665,0.00557165,66030.0,66029.0,0.48255296]
[1727459735900,0.00557165,66030.0,66029.0,0.62900096]
[1727459736129,0.00557165,66030.0,66029.0,0.47755296]
[1727459736370,0.00557165,66030.0,66029.0,0.62900096]
[1727459736596,0.00557165,66030.0,66029.0,0.64200096]
[1727459736833,0.00557165,66030.0,66029.0,0.49055296]
[1727459737285,0.00557165,66030.0,66029.0,0.64200096]
[1727459737508,0.00557165,66030.0,66029.0,0.63400096]
[1727459737720,0.00557165,66030.0,66029.0,0.64900096]
[1727459737972,0.00639865,66030.0,66029.0,0.64900096]
[1727459738187,0.00639865,66030.0,66029.0,0.63600096]
[1727459738839,0.00639865,66030.0,66029.0,0.64900096]
[1727459741307,0.00639865,66030.0,66029.0,0.63600096]
[1727459741533,0.00639865,66030.0,66029.0,0.64800096]
[1727459742003,0.00639865,66030.0,66029.0,0.63500096]
[1727459742240,0.00639865,66030.0,66029.0,0.63400096]
[1727459742467,0.00639865,66030.0,66029.0,0.63600096]
[1727459742895,0.00639865,66030.0,66029.0,0.64900096]
[1727459743095,0.00639865,66030.0,66029.0,0.63600096]
[1727459743373,0.00639865,66030.0,66029.0,0.65000096]
[1727459744045,0.00639865,66030.0,66029.0,0.49655296]
[1727459744275,0.00639865,66030.0,66029.0,0.48355296]
[1727459744517,0.00639865,66030.0,66029.0,0.49755296]
[1727459745180,0.00639865,66030.0,66029.0,0.49955296]
[1727459746055,0.00639865,66030.0,66029.0,0.65100096]
[1727459746486,0.15784465,66030.0,66029.0,0.49755296]
[1727459746962,0.15784465,66030.0,66029.0,0.48755296]
[1727459747699,0.15784465,66030.0,66029.0,0.47355296]
[1727459747949,0.15784465,66030.0,66029.0,0.47655296]
[1727459748194,0.15784465,66030.0,66029.0,0.46255296]
[1727459748425,0.15784465,66030.0,66029.0,0.45955296]
[1727459748659,0.15784465,66030.0,66029.0,0.46055296]
[1727459748890,0.15784465,66030.0,66029.0,0.46255296]
[1727459749119,0.15784465,66030.0,66029.0,0.46355296]
[1727459750313,0.15784465,66030.0,66029.0,0.46220696]
[1727459750756,0.15784465,66030.0,66029.0,0.46520696]
[1727459756278,0.23697177,66030.0,66029.0,0.46020696]
[1727459756749,0.23697177,66030.0,66029.0,0.45720696]
[1727459756972,0.23697177,66030.0,66029.0,0.46020696]
[1727459757424,0.23697177,66030.0,66029.0,0.45720696]
[1727459757650,0.23697177,66030.0,66029.0,0.45620696]
[1727459757887,0.23697177,66030.0,66029.0,0.45820696]
[1727459758333,0.23697177,66030.0,66029.0,0.45720695]
[1727459758597,0.23797177,66030.0,66029.0,0.45620695]
[1727459758832,0.23697177,66030.0,66029.0,0.45620695]
[1727459759295,0.23897177,66030.0,66029.0,0.45620695]
[1727459759517,0.23697177,66030.0,66029.0,0.45620695]
[1727459760406,0.23797177,66030.0,66029.0,0.45620695]
[1727459760617,0.33797177,66030.0,66029.0,0.45620695]
[1727459760834,0.33697177,66030.0,66029.0,0.45620695]
[1727459761048,0.33797177,66030.0,66029.0,0.45620695]
[1727459761278,0.33897177,66030.0,66029.0,0.45620695]
[1727459761500,0.33797177,66030.0,66029.0,0.45620695]
[1727459761721,0.33697177,66030.0,66029.0,0.45620695]
[1727459761937,0.33997177,66030.0,66029.0,0.45620695]
[1727459762165,0.33797177,66030.0,66029.0,0.45620695]
[1727459762684,0.33797177,66030.0,66029.0,0.45720695]
[1727459762685,0.36297177,66030.0,66029.0,0.45720695]
[1727459763152,0.53801827,66030.0,66029.0,0.45720695]
[1727459763376,0.35997177,66030.0,66029.0,0.45620695]
[1727459763599,0.36097177,66030.0,66029.0,0.45720695]
[1727459764092,0.36097177,66030.0,66029.0,0.45620695]
[1727459764093,0.25884465,66030.0,66029.0,0.45620695]
[1727459764313,0.28158878,66030.0,66029.0,0.45620695]
[1727459764541,0.28258878,66030.0,66029.0,0.45620695]
[1727459764781,0.25884465,66030.0,66029.0,0.45620695]
[1727459765036,0.28258768,66030.0,66029.0,0.45620695]
[1727459765273,0.28258768,66030.0,66029.0,0.47120695]
[1727459765274,0.03214168,66030.0,66029.0,0.47120695]
[1727459765516,0.00639865,66030.0,66029.0,0.62265495]
[1727459765973,0.00639865,66030.0,66029.0,0.62365495]
[1727459766212,0.00639865,66030.0,66029.0,0.62465495]
[1727459766455,0.00739865,66030.0,66029.0,0.62565495]
[1727459766679,0.00739865,66030.0,66029.0,0.63565495]
[1727459766910,0.00639865,66030.0,66029.0,0.63465495]
[1727459767381,0.00639865,66030.0,66029.0,0.64565495]
[1727459767905,0.00639865,66030.0,66029.0,0.91145495]
[1727459768134,0.00639865,66030.0,66029.0,1.02472196]
[1727459768358,0.00639865,66030.0,66029.0,0.91145495]
[1727459769471,0.00639865,66030.0,66029.0,1.02489935]
[1727459769709,0.00639865,66030.0,66029.0,0.91145495]
[1727459770228,0.00639865,66030.0,66029.0,1.0022]
[1727459770674,0.00639865,66030.0,66029.0,0.91145495]
[1727459770888,0.00639865,66030.0,66029.0,1.0022]
[1727459771113,0.00639865,66030.0,66029.0,0.91145495]
[1727459771325,0.00639865,66030.0,66029.0,1.0022]
[1727459772702,0.00639865,66030.0,66029.0,0.91145495]
[1727459773120,0.00639865,66030.0,66029.0,1.02488413]